[Event "Titled Tuesday Blitz November 07 Early 2023"]
[White "Davidson, Kevin"]
[Black "Baches Garcia, Guillermo"]
[WhiteFideId "2056810"]
[BlackFideId "2209764"]
[WhiteElo "2307"]
[BlackElo "2494"]
[Result "0-1"]
[Round "3"]
[TimeControl "180+1"]
[Date "2023.11.07"]
[WhiteClock "0:00:00"]
[BlackClock "0:00:48"]
[Board "200"]

1. e4 {[%clk 0:03:00]}  d5 {[%clk 0:03:00]} 2. exd5 {[%clk 0:03:00]}  Qxd5 {[%clk 0:03:01]} 3. Nc3 {[%clk 0:03:00]}  Qa5 {[%clk 0:03:02]} 4. Bc4 {[%clk 0:03:00]}  Nf6 {[%clk 0:03:02]} 5. d3 {[%clk 0:03:01]}  a6 {[%clk 0:03:02]} 6. Bd2 {[%clk 0:03:01]}  Qe5+ {[%clk 0:03:02]} 7. Nge2 {[%clk 0:03:00]}  b5 {[%clk 0:03:03]} 8. Bb3 {[%clk 0:02:37]}  Bb7 {[%clk 0:03:02]} 9. O-O {[%clk 0:02:29]}  e6 {[%clk 0:03:00]} 10. Bf4 {[%clk 0:02:25]}  Qc5 {[%clk 0:02:58]} 11. Ng3 {[%clk 0:01:58]}  Bd6 {[%clk 0:02:48]} 12. Bxd6 {[%clk 0:01:48]}  cxd6 {[%clk 0:02:40]} 13. Nce4 {[%clk 0:01:32]}  Qc6 {[%clk 0:02:39]} 14. Nxf6+ {[%clk 0:01:25]}  gxf6 {[%clk 0:02:40]} 15. f3 {[%clk 0:01:23]}  h5 {[%clk 0:02:33]} 16. h3 {[%clk 0:00:45]}  Nd7 {[%clk 0:02:21]} 17. Qe1 {[%clk 0:00:40]}  h4 {[%clk 0:02:05]} 18. Ne4 {[%clk 0:00:36]}  Ke7 {[%clk 0:01:58]} 19. a4 {[%clk 0:00:35]}  Rag8 {[%clk 0:01:56]} 20. axb5 {[%clk 0:00:33]}  axb5 {[%clk 0:01:57]} 21. Qc3 {[%clk 0:00:26]}  f5 {[%clk 0:01:52]} 22. Qxc6 {[%clk 0:00:20]}  Bxc6 {[%clk 0:01:52]} 23. Nc3 {[%clk 0:00:19]}  Rg3 {[%clk 0:01:48]} 24. Kf2 {[%clk 0:00:18]}  Rhg8 {[%clk 0:01:47]} 25. Rg1 {[%clk 0:00:18]}  Ne5 {[%clk 0:01:39]} 26. Ra7+ {[%clk 0:00:17]}  Kf6 {[%clk 0:01:39]} 27. Raa1 {[%clk 0:00:12]}  Rc8 {[%clk 0:01:25]} 28. Ne2 {[%clk 0:00:11]}  Rgg8 {[%clk 0:01:25]} 29. Nd4 {[%clk 0:00:11]}  Bd7 {[%clk 0:01:23]} 30. Ra7 {[%clk 0:00:09]}  Ke7 {[%clk 0:01:23]} 31. f4 {[%clk 0:00:07]}  Nc6 {[%clk 0:01:22]} 32. Nxc6+ {[%clk 0:00:07]}  Rxc6 {[%clk 0:01:22]} 33. Rga1 {[%clk 0:00:07]}  Rgc8 {[%clk 0:01:21]} 34. Rb7 {[%clk 0:00:07]}  R8c7 {[%clk 0:01:16]} 35. Raa7 {[%clk 0:00:06]}  Rxb7 {[%clk 0:01:13]} 36. Rxb7 {[%clk 0:00:07]}  Rc8 {[%clk 0:01:10]} 37. c3 {[%clk 0:00:07]}  Kd8 {[%clk 0:01:08]} 38. Ra7 {[%clk 0:00:06]}  Rc7 {[%clk 0:01:08]} 39. Rxc7 {[%clk 0:00:05]}  Kxc7 {[%clk 0:01:08]} 40. d4 {[%clk 0:00:05]}  f6 {[%clk 0:01:06]} 41. g3 {[%clk 0:00:05]}  hxg3+ {[%clk 0:01:06]} 42. Kxg3 {[%clk 0:00:06]}  e5 {[%clk 0:01:05]} 43. h4 {[%clk 0:00:05]}  Kd8 {[%clk 0:01:04]} 44. h5 {[%clk 0:00:04]}  Be8 {[%clk 0:01:03]} 45. h6 {[%clk 0:00:03]}  Bg6 {[%clk 0:01:04]} 46. Bg8 {[%clk 0:00:02]}  Kd7 {[%clk 0:00:58]} 47. h7 {[%clk 0:00:02]}  Bxh7 {[%clk 0:00:59]} 48. Bxh7 {[%clk 0:00:02]}  Ke6 {[%clk 0:00:59]} 49. Kf3 {[%clk 0:00:03]}  b4 {[%clk 0:00:57]} 50. Ke3 {[%clk 0:00:03]}  bxc3 {[%clk 0:00:57]} 51. bxc3 {[%clk 0:00:03]}  d5 {[%clk 0:00:53]} 52. Bg8+ {[%clk 0:00:03]}  Kd6 {[%clk 0:00:53]} 53. Kd3 {[%clk 0:00:03]}  exf4 {[%clk 0:00:49]} 54. Bh7 {[%clk 0:00:03]}  Ke6 {[%clk 0:00:49]} 55. Ke2 {[%clk 0:00:01]}  Kd6 {[%clk 0:00:45]} 56. Bxf5 {[%clk 0:00:01]}  Kc6 {[%clk 0:00:46]} 57. Bd3 {[%clk 0:00:02]}  Kb6 {[%clk 0:00:45]} 58. Kf3 {[%clk 0:00:02]}  Ka5 {[%clk 0:00:46]} 59. Kxf4 {[%clk 0:00:01]}  Ka4 {[%clk 0:00:47]} 60. Kf5 {[%clk 0:00:00]}  Kb3 {[%clk 0:00:48]} 0-1


[Site "https://www.chess.com"]

[Event "Titled Tuesday Blitz November 07 Early 2023"]
[White "Petrova, Irina"]
[Black "Buchenau, Frank"]
[WhiteFideId "14124122"]
[BlackFideId "4604350"]
[WhiteElo "2304"]
[BlackElo "2492"]
[Result "1-0"]
[Round "3"]
[TimeControl "180+1"]
[Date "2023.11.07"]
[WhiteClock "0:02:00"]
[BlackClock "0:00:39"]
[Board "201"]

1. e4 {[%clk 0:02:59]}  e6 {[%clk 0:03:00]} 2. d4 {[%clk 0:02:59]}  d5 {[%clk 0:03:00]} 3. Nc3 {[%clk 0:02:54]}  Nf6 {[%clk 0:03:00]} 4. Bg5 {[%clk 0:02:54]}  dxe4 {[%clk 0:02:59]} 5. Nxe4 {[%clk 0:02:55]}  Be7 {[%clk 0:02:59]} 6. Bxf6 {[%clk 0:02:54]}  gxf6 {[%clk 0:02:58]} 7. Nf3 {[%clk 0:02:54]}  f5 {[%clk 0:02:58]} 8. Nc3 {[%clk 0:02:50]}  a6 {[%clk 0:02:57]} 9. Qe2 {[%clk 0:02:46]}  Qd6 {[%clk 0:02:48]} 10. g3 {[%clk 0:02:45]}  b5 {[%clk 0:02:47]} 11. O-O-O {[%clk 0:02:44]}  Nd7 {[%clk 0:02:42]} 12. Bg2 {[%clk 0:02:44]}  Bb7 {[%clk 0:02:41]} 13. Rhe1 {[%clk 0:02:36]}  b4 {[%clk 0:02:34]} 14. Na4 {[%clk 0:02:30]}  Bc6 {[%clk 0:02:26]} 15. Nc5 {[%clk 0:02:22]}  Nxc5 {[%clk 0:02:25]} 16. dxc5 {[%clk 0:02:23]}  Qxc5 {[%clk 0:02:24]} 17. Nh4 {[%clk 0:02:07]}  Bxg2 {[%clk 0:02:07]} 18. Nxg2 {[%clk 0:02:08]}  O-O {[%clk 0:02:05]} 19. Nf4 {[%clk 0:02:06]}  Bg5 {[%clk 0:01:55]} 20. Qh5 {[%clk 0:02:02]}  Bxf4+ {[%clk 0:01:32]} 21. gxf4 {[%clk 0:02:03]}  Qe7 {[%clk 0:01:12]} 22. Rd3 {[%clk 0:02:01]}  Qf6 {[%clk 0:01:05]} 23. Rg1+ {[%clk 0:02:01]}  Kh8 {[%clk 0:00:39]} 24. Rh3 {[%clk 0:02:00]} 1-0


[Site "https://www.chess.com"]

[Event "Titled Tuesday Blitz November 07 Early 2023"]
[White "Rasmussen, Casper"]
[Black "Hajiyev, Kanan"]
[WhiteFideId "1402005"]
[BlackFideId "13404148"]
[WhiteElo "2297"]
[BlackElo "2490"]
[Result "0-1"]
[Round "3"]
[TimeControl "180+1"]
[Date "2023.11.07"]
[WhiteClock "0:00:00"]
[BlackClock "0:00:05"]
[Board "202"]

1. c4 {[%clk 0:03:00]}  c6 {[%clk 0:02:59]} 2. g3 {[%clk 0:03:01]}  d5 {[%clk 0:03:00]} 3. Bg2 {[%clk 0:03:02]}  Nf6 {[%clk 0:03:01]} 4. Nf3 {[%clk 0:03:01]}  g6 {[%clk 0:03:02]} 5. O-O {[%clk 0:03:01]}  Bg7 {[%clk 0:03:02]} 6. b3 {[%clk 0:03:02]}  O-O {[%clk 0:03:03]} 7. Bb2 {[%clk 0:03:02]}  a5 {[%clk 0:03:03]} 8. d4 {[%clk 0:03:03]}  Bg4 {[%clk 0:03:03]} 9. Ne5 {[%clk 0:03:02]}  Bf5 {[%clk 0:03:04]} 10. Nd2 {[%clk 0:03:02]}  Nbd7 {[%clk 0:03:03]} 11. Nd3 {[%clk 0:02:47]}  Ne4 {[%clk 0:03:00]} 12. f3 {[%clk 0:02:39]}  Nxd2 {[%clk 0:02:58]} 13. Qxd2 {[%clk 0:02:40]}  Bxd3 {[%clk 0:02:42]} 14. Qxd3 {[%clk 0:02:40]}  e5 {[%clk 0:02:14]} 15. cxd5 {[%clk 0:02:36]}  cxd5 {[%clk 0:02:01]} 16. dxe5 {[%clk 0:02:06]}  Bxe5 {[%clk 0:01:59]} 17. Bxe5 {[%clk 0:01:56]}  Nxe5 {[%clk 0:02:00]} 18. Qd2 {[%clk 0:01:55]}  Qb6+ {[%clk 0:01:51]} 19. Kh1 {[%clk 0:01:54]}  Rad8 {[%clk 0:01:52]} 20. Rfd1 {[%clk 0:01:53]}  d4 {[%clk 0:01:52]} 21. h3 {[%clk 0:01:48]}  Rfe8 {[%clk 0:01:49]} 22. Kh2 {[%clk 0:01:46]}  h5 {[%clk 0:01:48]} 23. Rac1 {[%clk 0:01:37]}  h4 {[%clk 0:01:46]} 24. gxh4 {[%clk 0:01:31]}  Qd6 {[%clk 0:01:44]} 25. Kh1 {[%clk 0:01:26]}  a4 {[%clk 0:01:41]} 26. Qg5 {[%clk 0:01:22]}  axb3 {[%clk 0:01:30]} 27. axb3 {[%clk 0:01:23]}  Nc6 {[%clk 0:01:19]} 28. Rc5 {[%clk 0:01:12]}  Rxe2 {[%clk 0:01:18]} 29. h5 {[%clk 0:01:10]}  Rde8 {[%clk 0:01:07]} 30. Rg1 {[%clk 0:00:58]}  R8e5 {[%clk 0:00:58]} 31. Rxe5 {[%clk 0:00:56]}  Rxe5 {[%clk 0:00:59]} 32. Qf4 {[%clk 0:00:52]}  g5 {[%clk 0:00:54]} 33. Qg3 {[%clk 0:00:47]}  Rd5 {[%clk 0:00:40]} 34. Qg4 {[%clk 0:00:44]}  Qf4 {[%clk 0:00:28]} 35. Qc8+ {[%clk 0:00:43]}  Nd8 {[%clk 0:00:25]} 36. Re1 {[%clk 0:00:37]}  Kg7 {[%clk 0:00:16]} 37. Re8 {[%clk 0:00:33]}  Qd6 {[%clk 0:00:15]} 38. Qg4 {[%clk 0:00:28]}  d3 {[%clk 0:00:15]} 39. Qe4 {[%clk 0:00:06]}  d2 {[%clk 0:00:07]} 40. h6+ {[%clk 0:00:00]}  Kf6 {[%clk 0:00:05]} 0-1


[Site "https://www.chess.com"]

[Event "Titled Tuesday Blitz November 07 Early 2023"]
[White "Schut, Han"]
[Black "Kubicka, Anna"]
[WhiteFideId "1005561"]
[BlackFideId "1152254"]
[WhiteElo "2293"]
[BlackElo "2490"]
[Result "0-1"]
[Round "3"]
[TimeControl "180+1"]
[Date "2023.11.07"]
[WhiteClock "0:00:00"]
[BlackClock "0:00:05"]
[Board "203"]

1. e4 {[%clk 0:02:59]}  c5 {[%clk 0:02:59]} 2. Nf3 {[%clk 0:03:00]}  d6 {[%clk 0:03:00]} 3. d4 {[%clk 0:03:00]}  cxd4 {[%clk 0:03:01]} 4. Nxd4 {[%clk 0:03:00]}  Nf6 {[%clk 0:03:01]} 5. f3 {[%clk 0:03:01]}  a6 {[%clk 0:03:02]} 6. c4 {[%clk 0:03:02]}  Nc6 {[%clk 0:03:01]} 7. Be3 {[%clk 0:03:01]}  g6 {[%clk 0:03:01]} 8. Nc3 {[%clk 0:03:02]}  Bg7 {[%clk 0:03:02]} 9. Qd2 {[%clk 0:03:02]}  O-O {[%clk 0:03:02]} 10. Rc1 {[%clk 0:03:03]}  Bd7 {[%clk 0:03:02]} 11. Be2 {[%clk 0:03:04]}  Rc8 {[%clk 0:03:02]} 12. O-O {[%clk 0:03:04]}  Nxd4 {[%clk 0:03:02]} 13. Bxd4 {[%clk 0:03:04]}  Re8 {[%clk 0:02:56]} 14. Rfd1 {[%clk 0:03:04]}  Qa5 {[%clk 0:02:56]} 15. Kh1 {[%clk 0:03:03]}  Bc6 {[%clk 0:02:51]} 16. Rb1 {[%clk 0:02:58]}  b5 {[%clk 0:02:45]} 17. b4 {[%clk 0:02:56]}  Qc7 {[%clk 0:02:33]} 18. cxb5 {[%clk 0:02:54]}  axb5 {[%clk 0:02:33]} 19. Nxb5 {[%clk 0:02:51]}  Bxb5 {[%clk 0:02:28]} 20. Bxb5 {[%clk 0:02:52]}  Nd7 {[%clk 0:02:28]} 21. Rdc1 {[%clk 0:02:15]}  Qb7 {[%clk 0:02:27]} 22. a4 {[%clk 0:02:08]}  Rxc1+ {[%clk 0:02:21]} 23. Rxc1 {[%clk 0:02:09]}  Bxd4 {[%clk 0:02:18]} 24. Qxd4 {[%clk 0:02:09]}  Rc8 {[%clk 0:02:18]} 25. Rxc8+ {[%clk 0:02:02]}  Qxc8 {[%clk 0:02:19]} 26. Bxd7 {[%clk 0:02:01]}  Qxd7 {[%clk 0:02:17]} 27. b5 {[%clk 0:01:59]}  Qc7 {[%clk 0:02:11]} 28. Qa1 {[%clk 0:01:55]}  Qa5 {[%clk 0:02:10]} 29. h3 {[%clk 0:01:50]}  Kf8 {[%clk 0:02:10]} 30. Kh2 {[%clk 0:01:51]}  Ke8 {[%clk 0:02:08]} 31. Qa3 {[%clk 0:01:41]}  Kd7 {[%clk 0:02:03]} 32. Qb3 {[%clk 0:01:40]}  e6 {[%clk 0:01:53]} 33. Qc4 {[%clk 0:01:39]}  Qb6 {[%clk 0:01:45]} 34. Qb4 {[%clk 0:01:32]}  Qb8 {[%clk 0:01:42]} 35. a5 {[%clk 0:01:28]}  d5+ {[%clk 0:01:42]} 36. g3 {[%clk 0:01:24]}  Qc7 {[%clk 0:01:35]} 37. Qb2 {[%clk 0:01:07]}  Qxa5 {[%clk 0:01:31]} 38. exd5 {[%clk 0:01:07]}  exd5 {[%clk 0:01:30]} 39. b6 {[%clk 0:01:07]}  Kc8 {[%clk 0:01:30]} 40. Qc2+ {[%clk 0:01:01]}  Kb7 {[%clk 0:01:25]} 41. Qc7+ {[%clk 0:01:01]}  Ka6 {[%clk 0:01:25]} 42. h4 {[%clk 0:00:55]}  Qxb6 {[%clk 0:01:15]} 43. Qxf7 {[%clk 0:00:55]}  Qf2+ {[%clk 0:01:02]} 44. Kh3 {[%clk 0:00:53]}  Qf1+ {[%clk 0:01:02]} 45. Kh2 {[%clk 0:00:53]}  Qe2+ {[%clk 0:00:53]} 46. Kh3 {[%clk 0:00:53]}  Qf1+ {[%clk 0:00:33]} 47. Kg4 {[%clk 0:00:53]}  Qc4+ {[%clk 0:00:29]} 48. f4 {[%clk 0:00:53]}  Qe2+ {[%clk 0:00:25]} 49. Kh3 {[%clk 0:00:47]}  Qf1+ {[%clk 0:00:25]} 50. Kh2 {[%clk 0:00:47]}  Qf2+ {[%clk 0:00:20]} 51. Kh3 {[%clk 0:00:48]}  d4 {[%clk 0:00:13]} 52. Qxh7 {[%clk 0:00:42]}  Qf1+ {[%clk 0:00:13]} 53. Kh2 {[%clk 0:00:41]}  Qe2+ {[%clk 0:00:13]} 54. Kh3 {[%clk 0:00:42]}  Qe6+ {[%clk 0:00:13]} 55. Kh2 {[%clk 0:00:35]}  d3 {[%clk 0:00:14]} 56. Qc7 {[%clk 0:00:26]}  d2 {[%clk 0:00:08]} 57. Qc2 {[%clk 0:00:08]}  Qe2+ {[%clk 0:00:08]} 58. Kh3 {[%clk 0:00:08]}  Qf1+ {[%clk 0:00:06]} 59. Kh2 {[%clk 0:00:06]}  d1=Q {[%clk 0:00:06]} 60. Qc6+ {[%clk 0:00:05]}  Ka5 {[%clk 0:00:06]} 61. Qc5+ {[%clk 0:00:06]}  Qb5 {[%clk 0:00:05]} 62. Qa3+ {[%clk 0:00:06]}  Qda4 {[%clk 0:00:04]} 63. Qc3+ {[%clk 0:00:05]}  Qab4 {[%clk 0:00:05]} 64. Qc7+ {[%clk 0:00:05]}  Qb6 {[%clk 0:00:05]} 65. Qe5+ {[%clk 0:00:04]}  Q4b5 {[%clk 0:00:04]} 66. Qc3+ {[%clk 0:00:03]}  Qb4 {[%clk 0:00:04]} 67. Qe5+ {[%clk 0:00:03]}  Q6c5 {[%clk 0:00:05]} 68. Qxc5+ {[%clk 0:00:00]}  Qxc5 {[%clk 0:00:05]} 0-1


[Site "https://www.chess.com"]

[Event "Titled Tuesday Blitz November 07 Early 2023"]
[White "Lehtosaari, Mauri"]
[Black "Martin, Lewis"]
[WhiteFideId "501999"]
[BlackFideId "410551"]
[WhiteElo "2488"]
[BlackElo "2284"]
[Result "1-0"]
[Round "3"]
[TimeControl "180+1"]
[Date "2023.11.07"]
[WhiteClock "0:00:34"]
[BlackClock "0:00:16"]
[Board "204"]

1. d4 {[%clk 0:03:00]}  d5 {[%clk 0:02:59]} 2. Nf3 {[%clk 0:03:00]}  Nf6 {[%clk 0:02:58]} 3. Bg5 {[%clk 0:03:00]}  Ne4 {[%clk 0:02:57]} 4. Bf4 {[%clk 0:03:01]}  c6 {[%clk 0:02:51]} 5. e3 {[%clk 0:02:57]}  Nd7 {[%clk 0:02:50]} 6. Nbd2 {[%clk 0:02:56]}  Ndf6 {[%clk 0:02:48]} 7. Bd3 {[%clk 0:02:55]}  Bg4 {[%clk 0:02:43]} 8. c3 {[%clk 0:02:55]}  e6 {[%clk 0:02:39]} 9. Qb3 {[%clk 0:02:54]}  Qb6 {[%clk 0:02:37]} 10. O-O {[%clk 0:02:48]}  h6 {[%clk 0:02:30]} 11. Bxe4 {[%clk 0:02:35]}  dxe4 {[%clk 0:02:25]} 12. Ne5 {[%clk 0:02:34]}  Bf5 {[%clk 0:02:20]} 13. Ndc4 {[%clk 0:02:26]}  Qxb3 {[%clk 0:02:20]} 14. axb3 {[%clk 0:02:27]}  a6 {[%clk 0:02:10]} 15. Na5 {[%clk 0:02:24]}  Ra7 {[%clk 0:02:06]} 16. Nec4 {[%clk 0:02:21]}  b5 {[%clk 0:01:59]} 17. Ne5 {[%clk 0:02:18]}  c5 {[%clk 0:01:57]} 18. Nac6 {[%clk 0:02:17]}  Ra8 {[%clk 0:01:55]} 19. Rfd1 {[%clk 0:02:14]}  Nd5 {[%clk 0:01:42]} 20. h3 {[%clk 0:01:32]}  g5 {[%clk 0:01:39]} 21. Bg3 {[%clk 0:01:24]}  Bg7 {[%clk 0:01:35]} 22. c4 {[%clk 0:01:22]}  Nb4 {[%clk 0:01:24]} 23. cxb5 {[%clk 0:01:18]}  O-O {[%clk 0:01:16]} 24. b6 {[%clk 0:01:10]}  Bxe5 {[%clk 0:01:12]} 25. Nxe5 {[%clk 0:01:03]}  cxd4 {[%clk 0:01:10]} 26. b7 {[%clk 0:00:59]}  Rab8 {[%clk 0:01:01]} 27. Nd7 {[%clk 0:00:57]}  Rxb7 {[%clk 0:01:02]} 28. Nxf8 {[%clk 0:00:58]}  Nc2 {[%clk 0:00:54]} 29. Rxa6 {[%clk 0:00:55]}  Kxf8 {[%clk 0:00:52]} 30. exd4 {[%clk 0:00:48]}  Rxb3 {[%clk 0:00:48]} 31. Be5 {[%clk 0:00:48]}  Kg8 {[%clk 0:00:38]} 32. g4 {[%clk 0:00:44]}  f6 {[%clk 0:00:28]} 33. Bxf6 {[%clk 0:00:39]}  Bg6 {[%clk 0:00:26]} 34. Rxe6 {[%clk 0:00:36]}  Rxb2 {[%clk 0:00:20]} 35. d5 {[%clk 0:00:35]}  Rb7 {[%clk 0:00:19]} 36. d6 {[%clk 0:00:35]}  Rd7 {[%clk 0:00:19]} 37. Re7 {[%clk 0:00:34]}  Rxe7 {[%clk 0:00:19]} 38. Bxe7 {[%clk 0:00:33]}  Be8 {[%clk 0:00:17]} 39. d7 {[%clk 0:00:33]}  Bxd7 {[%clk 0:00:16]} 40. Rxd7 {[%clk 0:00:34]} 1-0


[Site "https://www.chess.com"]

[Event "Titled Tuesday Blitz November 07 Early 2023"]
[White "De Souza, Cristiano Gomes"]
[Black "Ahn, Hongjin"]
[WhiteFideId "2151758"]
[BlackFideId "13201492"]
[WhiteElo "2271"]
[BlackElo "2487"]
[Result "1-0"]
[Round "3"]
[TimeControl "180+1"]
[Date "2023.11.07"]
[WhiteClock "0:00:30"]
[BlackClock "0:00:25"]
[Board "205"]

1. d4 {[%clk 0:02:43]}  e6 {[%clk 0:03:00]} 2. Nf3 {[%clk 0:02:43]}  d6 {[%clk 0:03:01]} 3. c4 {[%clk 0:02:43]}  Kd7 {[%clk 0:03:02]} 4. Nc3 {[%clk 0:02:43]}  Qe8 {[%clk 0:03:03]} 5. e4 {[%clk 0:02:43]}  Kd8 {[%clk 0:03:04]} 6. Be2 {[%clk 0:02:43]}  Nf6 {[%clk 0:03:04]} 7. O-O {[%clk 0:02:43]}  Nc6 {[%clk 0:03:01]} 8. d5 {[%clk 0:02:42]}  exd5 {[%clk 0:03:01]} 9. exd5 {[%clk 0:02:42]}  Ne7 {[%clk 0:03:01]} 10. Re1 {[%clk 0:02:42]}  Bd7 {[%clk 0:03:00]} 11. Bg5 {[%clk 0:02:38]}  Kc8 {[%clk 0:03:01]} 12. Rc1 {[%clk 0:02:21]}  Kb8 {[%clk 0:02:58]} 13. b4 {[%clk 0:02:19]}  h6 {[%clk 0:02:56]} 14. Bh4 {[%clk 0:02:18]}  Qd8 {[%clk 0:02:53]} 15. Nd4 {[%clk 0:02:16]}  Ng6 {[%clk 0:02:53]} 16. Bg3 {[%clk 0:01:54]}  h5 {[%clk 0:02:51]} 17. h3 {[%clk 0:01:48]}  h4 {[%clk 0:02:51]} 18. Bh2 {[%clk 0:01:48]}  Be7 {[%clk 0:02:50]} 19. Nb3 {[%clk 0:01:43]}  Nh7 {[%clk 0:02:38]} 20. c5 {[%clk 0:01:42]}  Ng5 {[%clk 0:02:35]} 21. cxd6 {[%clk 0:01:29]}  Bxd6 {[%clk 0:02:36]} 22. Bxd6 {[%clk 0:01:26]}  cxd6 {[%clk 0:02:37]} 23. Na5 {[%clk 0:01:23]}  Nf4 {[%clk 0:02:28]} 24. Bg4 {[%clk 0:01:12]}  f5 {[%clk 0:02:24]} 25. Bf3 {[%clk 0:01:12]}  Re8 {[%clk 0:02:03]} 26. Rxe8 {[%clk 0:01:11]}  Qxe8 {[%clk 0:02:04]} 27. b5 {[%clk 0:01:04]}  Qg6 {[%clk 0:02:00]} 28. Kf1 {[%clk 0:01:00]}  Qh6 {[%clk 0:01:18]} 29. Nc6+ {[%clk 0:00:59]}  bxc6 {[%clk 0:01:18]} 30. dxc6 {[%clk 0:00:58]}  Nxf3 {[%clk 0:00:42]} 31. Qxf3 {[%clk 0:00:50]}  Nd3 {[%clk 0:00:41]} 32. Rd1 {[%clk 0:00:37]}  Ne5 {[%clk 0:00:35]} 33. cxd7 {[%clk 0:00:33]}  Nxf3 {[%clk 0:00:25]} 34. d8=Q+ {[%clk 0:00:30]} 1-0


[Site "https://www.chess.com"]

[Event "Titled Tuesday Blitz November 07 Early 2023"]
[White "Smietanska, Wiktoria"]
[Black "Lund, Gunnar"]
[WhiteFideId "21869359"]
[BlackFideId "1520814"]
[WhiteElo "2270"]
[BlackElo "2485"]
[Result "0-1"]
[Round "3"]
[TimeControl "180+1"]
[Date "2023.11.07"]
[WhiteClock "0:00:00"]
[BlackClock "0:00:54"]
[Board "206"]

1. c4 {[%clk 0:03:00]}  h6 {[%clk 0:03:00]} 2. Nc3 {[%clk 0:02:59]}  a6 {[%clk 0:03:01]} 3. g3 {[%clk 0:02:57]}  e6 {[%clk 0:03:02]} 4. Bg2 {[%clk 0:02:57]}  d6 {[%clk 0:03:03]} 5. d4 {[%clk 0:02:57]}  Nc6 {[%clk 0:03:04]} 6. d5 {[%clk 0:02:55]}  exd5 {[%clk 0:03:02]} 7. cxd5 {[%clk 0:02:54]}  Ne5 {[%clk 0:02:52]} 8. f4 {[%clk 0:02:50]}  Nd7 {[%clk 0:02:50]} 9. Nf3 {[%clk 0:02:46]}  g6 {[%clk 0:02:50]} 10. e4 {[%clk 0:02:40]}  Bg7 {[%clk 0:02:50]} 11. O-O {[%clk 0:02:39]}  Ne7 {[%clk 0:02:50]} 12. Be3 {[%clk 0:02:39]}  O-O {[%clk 0:02:50]} 13. Bd4 {[%clk 0:02:39]}  c6 {[%clk 0:02:42]} 14. Bxg7 {[%clk 0:02:34]}  Kxg7 {[%clk 0:02:43]} 15. dxc6 {[%clk 0:02:23]}  Nxc6 {[%clk 0:02:44]} 16. Qxd6 {[%clk 0:02:16]}  Nf6 {[%clk 0:02:43]} 17. Qxd8 {[%clk 0:02:15]}  Rxd8 {[%clk 0:02:44]} 18. Rad1 {[%clk 0:02:14]}  Bg4 {[%clk 0:02:43]} 19. h3 {[%clk 0:02:07]}  Bxf3 {[%clk 0:02:42]} 20. Bxf3 {[%clk 0:02:08]}  Nd4 {[%clk 0:02:43]} 21. Bg2 {[%clk 0:02:07]}  Rab8 {[%clk 0:02:29]} 22. Nd5 {[%clk 0:02:03]}  Nxd5 {[%clk 0:02:28]} 23. exd5 {[%clk 0:02:03]}  Nf5 {[%clk 0:02:28]} 24. Kf2 {[%clk 0:01:58]}  Kf6 {[%clk 0:02:25]} 25. Rfe1 {[%clk 0:01:57]}  Nd6 {[%clk 0:02:19]} 26. Rc1 {[%clk 0:01:49]}  Rbc8 {[%clk 0:02:20]} 27. g4 {[%clk 0:01:44]}  g5 {[%clk 0:02:18]} 28. Kg3 {[%clk 0:01:37]}  Rxc1 {[%clk 0:02:09]} 29. Rxc1 {[%clk 0:01:37]}  Re8 {[%clk 0:02:10]} 30. fxg5+ {[%clk 0:01:29]}  hxg5 {[%clk 0:02:10]} 31. Kf3 {[%clk 0:01:26]}  Ke5 {[%clk 0:01:57]} 32. Kf2 {[%clk 0:01:21]}  Kd4 {[%clk 0:01:54]} 33. Rc7 {[%clk 0:01:16]}  Rc8 {[%clk 0:01:41]} 34. Rd7 {[%clk 0:01:12]}  Rc2+ {[%clk 0:01:36]} 35. Kg3 {[%clk 0:01:10]}  Ke5 {[%clk 0:01:30]} 36. Re7+ {[%clk 0:01:00]}  Kd4 {[%clk 0:01:30]} 37. Rd7 {[%clk 0:00:57]}  Nc4 {[%clk 0:01:30]} 38. Rxb7 {[%clk 0:00:53]}  Ne3 {[%clk 0:01:26]} 39. Bh1 {[%clk 0:00:08]}  Nf1+ {[%clk 0:01:14]} 40. Kf3 {[%clk 0:00:08]}  Nd2+ {[%clk 0:01:03]} 41. Ke2 {[%clk 0:00:04]}  Nc4+ {[%clk 0:01:00]} 42. Kf3 {[%clk 0:00:00]}  f6 {[%clk 0:00:54]} 0-1


[Site "https://www.chess.com"]

[Event "Titled Tuesday Blitz November 07 Early 2023"]
[White "Pujari, Rucha"]
[Black "Kuchava, Ana"]
[WhiteFideId "5024528"]
[BlackFideId "13605348"]
[WhiteElo "2469"]
[BlackElo "2257"]
[Result "1-0"]
[Round "3"]
[TimeControl "180+1"]
[Date "2023.11.07"]
[WhiteClock "0:00:20"]
[BlackClock "0:00:00"]
[Board "209"]

1. d4 {[%clk 0:03:00]}  d5 {[%clk 0:02:56]} 2. c4 {[%clk 0:03:01]}  e6 {[%clk 0:02:53]} 3. Nf3 {[%clk 0:03:01]}  Nf6 {[%clk 0:02:52]} 4. Nc3 {[%clk 0:03:02]}  Be7 {[%clk 0:02:52]} 5. Bf4 {[%clk 0:03:02]}  c5 {[%clk 0:02:47]} 6. dxc5 {[%clk 0:02:51]}  Bxc5 {[%clk 0:02:47]} 7. e3 {[%clk 0:02:51]}  O-O {[%clk 0:02:42]} 8. Qc2 {[%clk 0:02:48]}  Nc6 {[%clk 0:02:37]} 9. a3 {[%clk 0:02:48]}  Qa5 {[%clk 0:02:35]} 10. Rd1 {[%clk 0:02:46]}  Be7 {[%clk 0:02:32]} 11. Be2 {[%clk 0:02:36]}  a6 {[%clk 0:02:17]} 12. O-O {[%clk 0:02:32]}  dxc4 {[%clk 0:02:14]} 13. Bxc4 {[%clk 0:02:33]}  b5 {[%clk 0:02:14]} 14. Bd3 {[%clk 0:02:29]}  Bb7 {[%clk 0:02:14]} 15. Ne4 {[%clk 0:02:26]}  h6 {[%clk 0:01:38]} 16. Bd6 {[%clk 0:01:55]}  Rac8 {[%clk 0:00:59]} 17. Qb1 {[%clk 0:01:39]}  Nxe4 {[%clk 0:00:36]} 18. Bxe4 {[%clk 0:01:39]}  Bxd6 {[%clk 0:00:32]} 19. Rxd6 {[%clk 0:01:40]}  Rfd8 {[%clk 0:00:24]} 20. Rfd1 {[%clk 0:01:40]}  Rxd6 {[%clk 0:00:22]} 21. Rxd6 {[%clk 0:01:41]}  Qc7 {[%clk 0:00:22]} 22. Bxc6 {[%clk 0:01:20]}  Bxc6 {[%clk 0:00:12]} 23. Qd1 {[%clk 0:01:16]}  Bd5 {[%clk 0:00:06]} 24. Rxa6 {[%clk 0:00:54]}  Qc1 {[%clk 0:00:06]} 25. Qf1 {[%clk 0:00:54]}  Qxf1+ {[%clk 0:00:03]} 26. Kxf1 {[%clk 0:00:55]}  Rc1+ {[%clk 0:00:03]} 27. Ke2 {[%clk 0:00:54]}  Rc2+ {[%clk 0:00:02]} 28. Nd2 {[%clk 0:00:44]}  Rxb2 {[%clk 0:00:03]} 29. f3 {[%clk 0:00:40]}  Bc4+ {[%clk 0:00:03]} 30. Ke1 {[%clk 0:00:38]}  Ra2 {[%clk 0:00:02]} 31. e4 {[%clk 0:00:23]}  Ra1+ {[%clk 0:00:02]} 32. Kf2 {[%clk 0:00:23]}  Ra2 {[%clk 0:00:03]} 33. Ke3 {[%clk 0:00:24]}  Kh7 {[%clk 0:00:00]} 34. a4 {[%clk 0:00:20]} 1-0


[Site "https://www.chess.com"]